Cogmind - Beta 14 @@@ ROGUE MODE // 2024.09.15 @ 19:39:54 Player: jimmyl Result: Self-destructed Performance ------------- Evolutions (5) 2500 Regions Visited (13) 2600 Robots Destroyed (56) 280 Value Destroyed (2100) 2100 Prototype IDs (25) 500 Alien Tech Used (0) 0 Bonus (2898) 2898 TOTAL SCORE: 10878 Bonus ------- Follower Combat Kills 680 Registered with UFD 300 Met Data Miner 300 Met Warlord at Base 500 MAIN.C Attacked Warlord 500 Warlord Defense Kills 814 Friendly Fire -196 Cogmind --------- Core Integrity 588/1000 Matter 300/300 Energy 67/100 System Corruption 3% Temperature Cool (75) Movement Walking (105) Location -5/Warlord Parts ------- > --- POWER (2) -------- (None) > --- PROPULSION (3) --- Enhanced Flexi-carbon Leg Experimental Myomer Leg > --- UTILITY (9) ------ Advanced Heat Sink Large Storage Unit Improved Signal Interpreter Improved Target Analyzer Improved Hacking Suite > --- WEAPON (3) ------- Vortex Lance > --- INVENTORY (15) --- Fission Core Heavy Treads Wheel Scrap Suit Spectral Analyzer 0b10 Decoder Chip [Scout] Overtuned Quantum Rifle Overtuned Coil Gun Hardcell Cannon Hardcell Cannon Improved Plasma Cutter Vortex Lance (40) Peak State ------------ > --- POWER ------------ Vortex Chain Reactor > --- PROPULSION ------- Enhanced Flexi-carbon Leg Experimental Myomer Leg Experimental Myomer Leg > --- UTILITY ---------- Advanced Heat Sink Advanced Heat Sink Large Storage Unit Improved Sensor Array Improved Signal Interpreter Advanced Targeting Computer Improved Target Analyzer Experimental Thermal Shield Improved Hacking Suite > --- WEAPON ----------- Neutron Cannon Hypervelocity Gauss Rifle Hypervelocity Coil Gun > --- INVENTORY -------- Fission Core Heavy Treads Wheel Scrap Suit 0b10 Decoder Chip [Scout] Makeshift Hacking Suite Overtuned Quantum Rifle Overtuned Coil Gun Hardcell Cannon Hardcell Cannon Improved Plasma Cutter Vortex Lance Vortex Lance [Rating: 110] Favorites ----------- Power Micro Fission Core Engine Light Ion Engine Power Core Micro Fission Core Reactor Vortex Chain Reactor Propulsion Carbon-fiber Leg Treads Light Treads Leg Carbon-fiber Leg Wheel Compact Wheel Hover Unit Antigrav System Utility Large Storage Unit Device Advanced Heat Sink Storage Large Storage Unit Processor Improved Signal Interpreter Hackware Improved Hacking Suite Protection Makeshift Light Armor Plating Weapon Hypervelocity Gauss Rifle Energy Gun Overtuned Beamcaster Energy Cannon Neutron Cannon Ballistic Gun Hypervelocity Gauss Rifle Launcher Heavy Rocket Launcher Slashing Weapon Chainsword Piercing Weapon Vortex Lance Build | -11 -10 -10 -9 -9 -6 -6 -6 -6 -5 -5 -5 -5 -5 ------- Run | Yrd Mat Sub Rec Scr Fac Low Low Dat Pro Fac Upp Upp War Slots Evolved 10 | . . . . . 8 . . . . 2 . . . Power 1 | . . . . . 1 . . . . . . . . Propulsion 1 | . . . . . 1 . . . . . . . . Utility 7 | . . . . . 5 . . . . 2 . . . Weapon 1 | . . . . . 1 . . . . . . . . Parts Attached 67 | . 3 5 3 4 9 2 1 . 15 15 . . 10 Power 7 | . . . . 1 . . . . 3 . . . 3 Engine 2 | . . . . . . . . . 1 . . . 1 Core 4 | . . . . 1 . . . . 2 . . . 1 Reactor 1 | . . . . . . . . . . . . . 1 Propulsion 18 | . . . 2 . 3 . 1 . 4 6 . . 2 Treads 2 | . . . 2 . . . . . . . . . . Leg 11 | . . . . . 3 . . . . 6 . . 2 Wheel 1 | . . . . . . . 1 . . . . . . Hover 4 | . . . . . . . . . 4 . . . . Flight . | . . . . . . . . . . . . . . Utility 23 | . 1 1 1 . 5 2 . . 4 5 . . 4 Device 13 | . 1 . . . 1 1 . . 2 4 . . 4 Storage 1 | . . . 1 . . . . . . . . . . Processor 4 | . . . . . 2 . . . 2 . . . . Hackware 3 | . . . . . 2 . . . . 1 . . . Protection 2 | . . 1 . . . 1 . . . . . . . Artifact . | . . . . . . . . . . . . . . Weapon 19 | . 2 4 . 3 1 . . . 4 4 . . 1 Energy Gun 3 | . 1 . . 1 . . . . 1 . . . . Energy Cannon 1 | . . . . . . . . . . 1 . . . Ballistic Gun 10 | . . 3 . 2 . . . . 2 3 . . . Ballistic Cannon . | . . . . . . . . . . . . . . Launcher 3 | . 1 1 . . 1 . . . . . . . . Special Weapon . | . . . . . . . . . . . . . . Impact Weapon . | . . . . . . . . . . . . . . Slashing Weapon 1 | . . . . . . . . . 1 . . . . Piercing Weapon 1 | . . . . . . . . . . . . . 1 Special Melee Weapon . | . . . . . . . . . . . . . . Unidentified Prototypes 8 | . . . . . . . . . . 3 . . 5 Parts Lost 21 | . . . 1 . . . . . 12 1 . . 7 Power 4 | . . . . . . . . . 2 . . . 2 Propulsion 5 | . . . 1 . . . . . 4 . . . . Utility 6 | . . . . . . . . . 3 . . . 3 Weapon 6 | . . . . . . . . . 3 1 . . 2 Highest Loss Streak 7 | . . . 1 . . . . . 6 1 . . 7 To Critical Strikes 1 | . . . . . . . . . . . . . 1 Average Slot Usage (%) 91 | . 98 99 99 99 81 86 86 86 71 85 94 94 99 Engine 4 | . 14 14 14 10 . . . . 1 . . . 4 Core 3 | . . . . 3 6 6 6 6 3 5 5 5 4 Treads 5 | . . . 21 28 . . . . . . . . . Leg 13 | . 28 28 6 . 20 20 14 13 6 12 17 17 17 Device 12 | . 12 9 . . 6 12 13 13 10 14 23 23 22 Storage 8 | . 14 14 14 14 6 6 6 6 6 5 5 5 5 Processor 10 | . . . . . 4 13 13 13 15 22 17 17 17 Hackware 2 | . . . . . 9 . . . . 4 5 5 5 Protection 4 | . . 4 14 14 6 5 6 6 4 . . . . Energy Gun 2 | . 13 1 . 1 6 6 6 6 3 . . . . Energy Cannon 1 | . . . . . . . . . . 3 5 5 4 Ballistic Gun 13 | . 14 24 28 25 6 6 6 6 3 9 11 11 10 Launcher 1 | . . 1 . . 2 6 6 6 2 . . . . Peak Build Rating 110 | . 7 13 13 27 61 65 65 61 61 81 83 84 110 Average Rating 53 | . 6 10 12 15 57 64 61 61 49 71 82 83 94 On Entrance 44 | 6 6 7 13 13 27 60 65 61 61 50 80 83 84 Naked Turns . | . . . . . . . . . . . . . . Heaviest Build 54 | 11 14 19 34 42 53 54 54 54 54 51 51 51 53 Greatest Support 78 | 20 20 20 40 40 65 65 65 16 33 63 58 58 78 Greatest Overweight (x) 13 | . . . 1 1 . . 3 3 13 1 . . . Average Overweight (x) . | . . . . . . . 2 3 2 . . . . Largest Inventory Capacity 15 | . 8 8 15 15 15 15 15 15 15 15 15 15 15 Average Capacity 13 | . 8 8 9 15 15 15 15 15 15 15 15 15 15 Most Carried 15 | . 7 8 8 15 15 12 13 13 13 12 14 15 15 Average Carried 11 | . 6 7 6 9 11 10 12 13 11 9 13 14 14 Final Capacity 15 | 8 8 8 15 15 15 15 15 15 15 15 15 15 15 Final Carried 15 | 6 7 8 6 15 12 12 13 13 9 9 14 15 14 Class Distribution -------------------- 35% | Scavenger-Gunner 32% | Mutant 20% | Scrapper 4% | Hacker-Scrapper 4% | Scavenger-Mutant Dominant Class ---------------- Mutant | -10/Materials Mutant | -10/Subcaves Commander-Mutant | -9/Recycling Mutant | -9/Scraptown Hacker-Scrapper | -6/Factory Scrapper | -6/Lower Caves Scrapper | -6/Lower Caves Scrapper | -6/Data Miner Scrapper | -5/Proximity Caves Scavenger-Gunner | -5/Factory Scavenger-Gunner | -5/Upper Caves Scavenger-Gunner | -5/Upper Caves Scavenger-Gunner | -5/Warlord Resources | -11 -10 -10 -9 -9 -6 -6 -6 -6 -5 -5 -5 -5 -5 ----------- Run | Yrd Mat Sub Rec Scr Fac Low Low Dat Pro Fac Upp Upp War Matter Collected 1782 | 200 5 215 149 64 149 127 42 . 148 316 86 70 211 Remotely . | . . . . . . . . . . . . . . Salvage Created 2185 | . 24 264 36 . 138 160 66 . 165 665 . 225 442 Parts 92 | . 8 11 . . 9 7 2 . 5 31 . 10 9 Haulers Intercepted . | . . . . . . . . . . . . . . Recyclers Shooed 3 | . . . . . 1 . . . . 2 . . . Parts Field Recycled . | . . . . . . . . . . . . . . Retrieved Matter . | . . . . . . . . . . . . . . Parts Self-Destructed 76 | . . 9 . . . 5 8 . 19 . 15 20 . Prevented 1 | . . . . . . . 1 . . . . . . Kills | -11 -10 -10 -9 -9 -6 -6 -6 -6 -5 -5 -5 -5 -5 ------- Run | Yrd Mat Sub Rec Scr Fac Low Low Dat Pro Fac Upp Upp War Combat Hostiles Destroyed 43 | . . 9 1 . 5 5 1 . 4 9 . 3 6 Melee 3 | . . . . . . . . . 1 . . . 2 Guns 26 | . . 9 1 . 4 2 1 . 3 4 . . 2 Cannons 9 | . . . . . . . . . . 4 . 3 2 AOE 5 | . . . . . 1 3 . . . 1 . . . Classes Destroyed 13 | . 2 4 1 . 2 1 . . 1 1 . . 1 Worker 2 | . . . . . 1 . . . . 1 . . . Builder 4 | . 2 . . . . . . . . 2 . . . Tunneler 2 | . 1 . . . . . . . . 1 . . . Operator 1 | . . . . . 1 . . . . . . . . Turret 2 | . . 2 . . . . . . . . . . . Watcher 1 | . . . . . . . . . . 1 . . . Swarmer 13 | . . 4 . . 4 3 . . 2 . . . . Grunt 17 | . . 1 . . 1 1 . . . 8 . 2 4 Sentry 4 | . . . . . . 1 1 . . 1 . 1 . Demolisher 1 | . . . 1 . . . . . . . . . . Programmer 3 | . . . . . . . . . 2 . . . 1 Executioner 1 | . . . . . . . . . . . . . 1 Subdweller 4 | . . 4 . . . . . . . . . . . Thug 1 | . . . . . . . . . . . . . 1 Best Kill Streak 7 | . 3 4 1 . 4 3 1 . 2 7 . 2 3 Combat Bots Only 6 | . . 4 1 . 2 3 1 . 2 6 . 2 3 Max Kills in Single Turn 2 | . 2 2 1 . 2 2 1 . 1 2 . 1 2 Gunslinging 1 | . . 1 . . 1 . . . . . . . . Exploded 2 | . . . . . 1 2 . . . 1 . . . Melee 1 | . . . . . . . . . 1 . . . 1 Uniques/NPCs Destroyed . | . . . . . . . . . . . . . . Combat | -11 -10 -10 -9 -9 -6 -6 -6 -6 -5 -5 -5 -5 -5 -------- Run | Yrd Mat Sub Rec Scr Fac Low Low Dat Pro Fac Upp Upp War Hostile Shots Fired 423 | . . 57 2 . 29 36 36 . 121 55 . 14 73 Missed 140 | . . 28 . . 9 12 9 . 30 23 . 6 23 Damage Taken 4585 | . . 344 88 . 327 208 195 . 1600 649 . 128 1046 Core 1028 | . . 38 14 . 30 16 27 . 491 116 . 14 282 Absorbed by Shields 10 | . . . . . . . . . . . . . 10 Ignored by Resistances 266 | . . . . . . . . . . 148 . 40 78 Regen/Repaired (Parts) 173 | . . . . . . . . . . . . . 173 Core Remaining (%) 70 | 100 . . . 79 . . . . 33 . . . . Volleys Fired 149 | . 3 37 2 . 14 10 8 . 16 30 . 7 22 Largest 3 | . 1 2 2 . 2 2 2 . 2 3 . 3 3 Hottest 158 | . 30 58 58 . 130 130 130 . 130 158 . 158 158 Shots Fired 274 | . 3 58 4 . 26 17 12 . 20 68 . 21 45 Gun 202 | . . 42 4 . 24 15 12 . 20 48 . 14 23 Cannon 49 | . . . . . . . . . . 20 . 7 22 Launcher 23 | . 3 16 . . 2 2 . . . . . . . Special . | . . . . . . . . . . . . . . Kinetic 172 | . . 42 4 . 12 8 8 . 13 48 . 14 23 Thermal 79 | . . . . . 12 7 4 . 7 20 . 7 22 Explosive 23 | . 3 16 . . 2 2 . . . . . . . Electromagnetic . | . . . . . . . . . . . . . . Robot Hit Streak 19 | . . 19 5 . 5 9 4 . 6 19 . 11 12 Robot Miss Streak 3 | . . 1 1 . 3 1 1 . 3 2 . 2 1 Penetration Max 1 | . . . . . . . . . . 1 . . 1 Secondary Targets 4 | . . 3 . . 1 . . . . . . . . Max Gunslinging Chain 1 | . . 1 . . 1 . . . . . . . . Shots Hit Robots 157 | . . 26 3 . 10 13 8 . 22 42 . 12 21 Core Hits 90 | . 4 21 2 . 8 7 2 . 6 25 . 4 11 Critical Kills 11 | . . . . . 1 . . . 1 6 . . 3 Critical Parts Destroyed 13 | . . . . . . . . . . 8 . 2 3 Critical Strikes 31 | . . . . . 1 . . . 2 15 . 2 11 Destroy 25 | . . . . . 1 . . . 1 15 . 2 6 Sever 1 | . . . . . . . . . 1 . . . . Sunder 5 | . . . . . . . . . . . . . 5 Melee Attacks 23 | . . . . . . . . . 13 . . . 10 Impact . | . . . . . . . . . . . . . . Slashing 13 | . . . . . . . . . 13 . . . . Piercing . | . . . . . . . . . . . . . . Entropic 10 | . . . . . . . . . . . . . 10 Sneak Attacks . | . . . . . . . . . . . . . . Combat Hostiles . | . . . . . . . . . . . . . . Follow-up Attacks . | . . . . . . . . . . . . . . Damage Inflicted 5548 | . 67 702 57 . 462 556 188 . 684 1373 . 207 1252 Guns 1986 | . . 471 57 . 260 290 188 . 364 203 . 51 102 Cannons 1187 | . . . . . . . . . . 640 . 156 391 Explosions 1296 | . 67 231 . . 202 266 . . . 530 . . . Melee 1079 | . . . . . . . . . 320 . . . 759 Ramming . | . . . . . . . . . . . . . . Kinetic 1422 | . . 471 57 . 115 126 103 . 194 203 . 51 102 Thermal 1751 | . . . . . 145 164 85 . 170 640 . 156 391 Explosive 1296 | . 67 231 . . 202 266 . . . 530 . . . Electromagnetic . | . . . . . . . . . . . . . . Impact . | . . . . . . . . . . . . . . Slashing 320 | . . . . . . . . . 320 . . . . Piercing . | . . . . . . . . . . . . . . Entropic 759 | . . . . . . . . . . . . . 759 Highest Corruption 9 | . . . . . . . . . 9 . . . 3 Average Corruption 5 | . . . . . . . . . 7 . . . 2 Corruption Purged . | . . . . . . . . . . . . . . Corruption Blocked . | . . . . . . . . . . . . . . Effects 21 | . . . . . . . . . 15 . . . 6 Message Errors 4 | . . . . . . . . . 3 . . . 1 Matter Fused 5 | . . . . . . . . . 3 . . . 2 Heat Flow Errors 4 | . . . . . . . . . 4 . . . . Energy Discharges 4 | . . . . . . . . . 2 . . . 2 Data Loss (minor) 3 | . . . . . . . . . 3 . . . . Misfires 1 | . . . . . . . . . . . . . 1 Overload Shots . | . . . . . . . . . . . . . . Overflow Damage 115 | . . 3 . . 14 16 . . 1 78 . . 3 Projectiles 22 | . . . . . . . . . . 19 . . 3 Explosions 92 | . . 3 . . 14 16 . . . 59 . . . Melee 1 | . . . . . . . . . 1 . . . . Knockbacks . | . . . . . . . . . . . . . . Impact . | . . . . . . . . . . . . . . Kinetic . | . . . . . . . . . . . . . . Secondary . | . . . . . . . . . . . . . . Self-Inflicted Damage 186 | . . 29 . . . . . . . 157 . . . Shots 3 | . . 1 . . . . . . . 2 . . . Rammed . | . . . . . . . . . . . . . . Targets Rammed . | . . . . . . . . . . . . . . Kicked . | . . . . . . . . . . . . . . Crushed . | . . . . . . . . . . . . . . Highest Temperature 410 | . . . 41 . 410 370 370 . 410 201 . 9 . Average Temperature 142 | . . . 23 . 103 173 205 . 157 54 . 9 . Received Heat Transfer 807 | . . 147 . . 18 60 48 . . 288 . 72 174 Effects 6 | . . . . . 1 . 3 . 2 . . . . Shutdowns 2 | . . . . . 1 . . . 1 . . . . Energy Bleed 2 | . . . . . . . 1 . 1 . . . . Short Circuit 1 | . . . . . . . 1 . . . . . . Damage (minor) 1 | . . . . . . . 1 . . . . . . Siege Activations . | . . . . . . . . . . . . . . Robots Corrupted . | . . . . . . . . . . . . . . Combat Hostiles . | . . . . . . . . . . . . . . Parts Fried . | . . . . . . . . . . . . . . Impact Corruptions . | . . . . . . . . . . . . . . Robots Melted . | . . . . . . . . . . . . . . Combat Hostiles . | . . . . . . . . . . . . . . Parts Melted 5 | . . . . . 2 . 1 . 2 . . . . Heat Transferred 937 | . . . . . 250 300 150 . 237 . . . . Parts Sabotaged 3 | . . . . . . . . . . . . . 3 Parts Stolen . | . . . . . . . . . . . . . . Parts Stripped . | . . . . . . . . . . . . . . Power Chain Reactions . | . . . . . . . . . . . . . . Alert | -11 -10 -10 -9 -9 -6 -6 -6 -6 -5 -5 -5 -5 -5 ------- Run | Yrd Mat Sub Rec Scr Fac Low Low Dat Pro Fac Upp Upp War Peak Influence 349 | . 25 . 197 . 246 . . . . 349 . . . Initial 187 | . . . 187 . . . . . . . . . . Average 108 | . 1 . 189 . 87 . . . . 167 . . . Maximum Alert Level 1 | . . . . . 1 . . . . 1 . . . Low Security (%) 86 | . 100 . 100 . 86 . . . . 65 . . . Level 1 13 | . . . . . 13 . . . . 34 . . . Level 2 . | . . . . . . . . . . . . . . Level 3 . | . . . . . . . . . . . . . . Level 4 . | . . . . . . . . . . . . . . Level 5 . | . . . . . . . . . . . . . . High Security . | . . . . . . . . . . . . . . Max Security . | . . . . . . . . . . . . . . Squads Dispatched 9 | . . . . . 3 . . . . 6 . . . Investigation 2 | . . . . . 1 . . . . 1 . . . Extermination . | . . . . . . . . . . . . . . Reinforcement 4 | . . . . . 2 . . . . 2 . . . Assault . | . . . . . . . . . . . . . . Garrison 3 | . . . . . . . . . . 3 . . . Intercept . | . . . . . . . . . . . . . . Searches Triggered . | . . . . . . . . . . . . . . Construction Impeded 2 | . . . . . 1 . . . . 1 . . . Haulers Reinforced 1 | . . . . . 1 . . . . . . . . Active Scanning Responses . | . . . . . . . . . . . . . . Cargo Convoy Interrupts . | . . . . . . . . . . . . . . Stealth | -11 -10 -10 -9 -9 -6 -6 -6 -6 -5 -5 -5 -5 -5 --------- Run | Yrd Mat Sub Rec Scr Fac Low Low Dat Pro Fac Upp Upp War Distress Signals 5 | . . . . . 1 . . . . 1 . . 3 Communications Jammed . | . . . . . . . . . . . . . . Distress Signals . | . . . . . . . . . . . . . . Times Spotted 101 | . . 12 1 . 10 5 1 . 9 14 5 9 35 Peak Tracking Total 19 | . . 4 1 . 5 3 1 . 4 3 5 5 19 Tactical Retreats 9 | . . 3 . . 1 . . . 1 1 . 1 2 Traps | -11 -10 -10 -9 -9 -6 -6 -6 -6 -5 -5 -5 -5 -5 ------- Run | Yrd Mat Sub Rec Scr Fac Low Low Dat Pro Fac Upp Upp War Traps Triggered 1 | . . . . . 1 . . . . . . . . Indirectly . | . . . . . . . . . . . . . . Trap Hack Attempts . | . . . . . . . . . . . . . . Triggered . | . . . . . . . . . . . . . . Disarmed . | . . . . . . . . . . . . . . Reprogrammed . | . . . . . . . . . . . . . . Reused . | . . . . . . . . . . . . . . Traps Extracted . | . . . . . . . . . . . . . . Installed . | . . . . . . . . . . . . . . Triggered 32 | . . . . . . . 2 . . . . 1 29 Machines | -11 -10 -10 -9 -9 -6 -6 -6 -6 -5 -5 -5 -5 -5 ---------- Run | Yrd Mat Sub Rec Scr Fac Low Low Dat Pro Fac Upp Upp War Machines Disabled 8 | . . 3 . . 2 . . . . 3 . . . Max in Single Turn 2 | . . 1 . . 1 . . . . 2 . . . Garrison Access 1 | . . . . . 1 . . . . . . . . Machines Repaired . | . . . . . . . . . . . . . . Machines Dismantled . | . . . . . . . . . . . . . . Machines Sabotaged . | . . . . . . . . . . . . . . Overloaded Fab Kills . | . . . . . . . . . . . . . . Hacking | -11 -10 -10 -9 -9 -6 -6 -6 -6 -5 -5 -5 -5 -5 --------- Run | Yrd Mat Sub Rec Scr Fac Low Low Dat Pro Fac Upp Upp War Machines Accessed 19 | . 1 . . 2 4 1 . 3 . 1 1 1 5 Terminals 4 | . 1 . . . 3 . . . . . . . . Fabricators . | . . . . . . . . . . . . . . Repair Stations . | . . . . . . . . . . . . . . Recycling Units 1 | . . . . . . . . . . 1 . . . Scanalyzers . | . . . . . . . . . . . . . . Garrison Access 1 | . . . . . 1 . . . . . . . . Total Hacks 55 | . 3 . . 8 8 1 . 26 . 1 1 1 6 Successful 46 | . 1 . . 8 1 1 . 26 . 1 1 1 6 Failed 9 | . 2 . . . 7 . . . . . . . . Catastrophic 5 | . 1 . . . 4 . . . . . . . . Database Lockouts . | . . . . . . . . . . . . . . Manual 10 | . 3 . . . 5 . . . . 1 . . 1 Terminals 8 | . 3 . . . 5 . . . . . . . . Fabricators . | . . . . . . . . . . . . . . Repair Stations . | . . . . . . . . . . . . . . Recycling Units 1 | . . . . . . . . . . 1 . . . Scanalyzers . | . . . . . . . . . . . . . . Garrison Access 3 | . . . . . 3 . . . . . . . . Terminal Hacks 44 | . 1 . . 8 . 1 . 26 . . 1 1 6 Record 19 | . . . . 8 . . . 6 . . . . 5 Part Schematic 11 | . . . . . . . . 11 . . . . . Robot Schematic 6 | . . . . . . . . 6 . . . . . Robot Analysis 1 | . 1 . . . . . . . . . . . . Prototype ID Bank 3 | . . . . . . . . 3 . . . . . Open Door 4 | . . . . . . 1 . . . . 1 1 1 Fabricator Hacks . | . . . . . . . . . . . . . . Repair Station Hacks . | . . . . . . . . . . . . . . Recycling Unit Hacks . | . . . . . . . . . . . . . . Scanalyzer . | . . . . . . . . . . . . . . Garrison Access Hacks 1 | . . . . . 1 . . . . . . . . Seal Access 1 | . . . . . 1 . . . . . . . . Unauthorized Hacks 1 | . . . . . . . . . . 1 . . . Terminals . | . . . . . . . . . . . . . . Fabricators . | . . . . . . . . . . . . . . Repair Stations 1 | . . . . . . . . . . 1 . . . Recycling Units . | . . . . . . . . . . . . . . Scrapoids 1 | . . . . . . . . . . 1 . . . Scanalyzers . | . . . . . . . . . . . . . . Garrison Access . | . . . . . . . . . . . . . . Data Cores Recovered 1 | . . . . . 1 . . . . . . . . Used . | . . . . . . . . . . . . . . Hacking Detections 4 | . 1 . . . 3 . . . . . . . . Full Trace Events . | . . . . . . . . . . . . . . Feedback Events . | . . . . . . . . . . . . . . Feedback Blocked . | . . . . . . . . . . . . . . Robot Schematics Acquired 6 | . . . . . . . . 6 . . . . . Robots Built . | . . . . . . . . . . . . . . Authchips . | . . . . . . . . . . . . . . Time . | . . . . . . . . . . . . . . Total Robot Build Rating . | . . . . . . . . . . . . . . Part Schematics Acquired 11 | . . . . . . . . 11 . . . . . Parts Built . | . . . . . . . . . . . . . . Authchips . | . . . . . . . . . . . . . . Time . | . . . . . . . . . . . . . . Total Part Build Rating . | . . . . . . . . . . . . . . Parts Repaired . | . . . . . . . . . . . . . . Time . | . . . . . . . . . . . . . . Parts Recycled . | . . . . . . . . . . . . . . Recycled Matter . | . . . . . . . . . . . . . . Retrieved Matter . | . . . . . . . . . . . . . . Retrieved Components . | . . . . . . . . . . . . . . Parts Scanalyzed . | . . . . . . . . . . . . . . Part Schematics Acquired . | . . . . . . . . . . . . . . Parts Damaged . | . . . . . . . . . . . . . . Bothacking | -11 -10 -10 -9 -9 -6 -6 -6 -6 -5 -5 -5 -5 -5 ------------ Run | Yrd Mat Sub Rec Scr Fac Low Low Dat Pro Fac Upp Upp War Used RIF Installer . | . . . . . . . . . . . . . . Robots Hacked . | . . . . . . . . . . . . . . Non-combat . | . . . . . . . . . . . . . . Combat . | . . . . . . . . . . . . . . Robot Hacks Applied . | . . . . . . . . . . . . . . Relay Couplers Released . | . . . . . . . . . . . . . . Fabnet Peak Effective % . | . . . . . . . . . . . . . . Robots Rewired 10 | . . . 5 . . . . . . . . . 5 Allies Hacked . | . . . . . . . . . . . . . . Hacks Repelled . | . . . . . . . . . . . . . . Allies | -11 -10 -10 -9 -9 -6 -6 -6 -6 -5 -5 -5 -5 -5 -------- Run | Yrd Mat Sub Rec Scr Fac Low Low Dat Pro Fac Upp Upp War Total Allies 16 | . . . 5 . . . . . 1 5 . . 5 Largest Group 5 | . . . 5 3 3 . . . 1 5 5 3 5 Highest-Rated Group 272 | . . . 102 67 67 . . . 96 235 235 141 272 Highest-Rated Ally 96 | . . . 34 34 34 . . . 96 96 47 47 68 Total Orders . | . . . . . . . . . . . . . . Ally Attacks 107 | . . . . . 10 . . . . 27 21 35 14 Total Damage 3439 | . . . . . 708 . . . . 802 603 551 775 Kills 24 | . . . . . 5 . . . . 5 5 6 3 Allies Corrupted . | . . . . . . . . . . . . . . Allies Melted 2 | . . . . . . . . . . . . . 2 Intel | -11 -10 -10 -9 -9 -6 -6 -6 -6 -5 -5 -5 -5 -5 ------- Run | Yrd Mat Sub Rec Scr Fac Low Low Dat Pro Fac Upp Upp War Robot Analysis Total 1 | . 1 . . . . . . . . . . . . Derelict Logs Recovered 7 | . . 1 . . . 1 1 . 2 . 2 . . Drone Launches . | . . . . . . . . . . . . . . Drone Recoveries . | . . . . . . . . . . . . . . Exploration | -11 -10 -10 -9 -9 -6 -6 -6 -6 -5 -5 -5 -5 -5 ------------- Run | Yrd Mat Sub Rec Scr Fac Low Low Dat Pro Fac Upp Upp War Turns Passed 8166 | . 521 330 409 1350 502 347 604 114 921 576 522 499 1471 Spaces Moved 4820 | 1 93 174 217 790 455 332 340 79 497 407 421 349 665 Core 5 | . . . . . . . . . 5 . . . . Treads 943 | . . . 153 790 . . . . . . . . . Legs 2860 | 1 93 174 64 . 455 332 89 . . 217 421 349 665 Wheels 589 | . . . . . . . 251 79 259 . . . . Hover 423 | . . . . . . . . . 233 190 . . . Flight . | . . . . . . . . . . . . . . Fastest Speed 52 | 120 120 120 120 160 93 93 93 145 52 52 120 120 100 Average Speed 124 | 120 120 120 148 167 93 93 142 145 133 90 120 120 112 Slowest Speed 700 | 120 120 120 190 240 93 93 240 145 700 200 120 120 120 Overloaded Moves . | . . . . . . . . . . . . . . Propulsion Burnouts . | . . . . . . . . . . . . . . Robots Hopped . | . . . . . . . . . . . . . . Cave-ins Triggered . | . . . . . . . . . . . . . . Exploration Rate (%) 43 | 2 20 16 53 56 13 57 61 69 69 13 61 48 76 Regions Visited 13 Branch Regions 10 Pre-discovered Areas 5 | . . 1 . . . . 1 1 . . 1 . 1 Known Exits Taken 8 | . . . . . 1 1 1 1 1 1 1 1 . Unknown Exits Taken 5 | 1 1 1 1 1 . . . . . . . . . Scrap Searched 17 | . . 5 . 5 . 2 . . 1 . 2 2 . Spaces Dug 7 | . . . . . . . . . . . . . 7 Terrain Destroyed 84 | . 6 20 . . 14 10 . . 1 22 . 3 8 Melee . | . . . . . . . . . . . . . . Projectile 15 | . . . . . 2 1 . . 1 1 . 3 7 AOE 67 | . 6 20 . . 12 9 . . . 20 . . . Terrain Rammed . | . . . . . . . . . . . . . . Walls Destroyed . | . . . . . . . . . . . . . . Machines Disabled . | . . . . . . . . . . . . . . Actions | -11 -10 -10 -9 -9 -6 -6 -6 -6 -5 -5 -5 -5 -5 --------- Run | Yrd Mat Sub Rec Scr Fac Low Low Dat Pro Fac Upp Upp War Total 6738 | . 498 237 301 820 520 361 455 78 720 556 438 413 1341 Wait 1507 | . 399 19 17 2 33 14 105 . 171 92 14 52 589 Move 4807 | . 92 173 216 789 454 331 339 78 496 406 420 348 665 Hop . | . . . . . . . . . . . . . . Pick Up 43 | . 1 1 . 15 6 2 1 . 2 4 4 3 4 Fast Attach 34 | . 1 2 . 3 1 . . . 8 10 . . 9 Attach 26 | . . . 2 1 7 2 1 . 7 5 . . 1 Detach 4 | . . . . . . . 1 . 2 1 . . . Swap 7 | . 2 3 1 . 1 . . . . . . . . Drop 49 | . . 2 2 10 4 2 . . 4 8 . 3 14 Fire 149 | . 3 37 2 . 14 10 8 . 16 30 . 7 22 Melee 23 | . . . . . . . . . 13 . . . 10 Ram . | . . . . . . . . . . . . . . Kick . | . . . . . . . . . . . . . . Crush . | . . . . . . . . . . . . . . Escape Stasis . | . . . . . . . . . . . . . . Rewire 88 | . . . 61 . . . . . . . . . 27 Trap . | . . . . . . . . . . . . . . Miscellaneous 1 | . . . . . . . . . 1 . . . . Route ------- -11/Scrapyard -10/Materials -10/Subcaves (discovered 2 exits: [*Mat] / [*Rec]) -9/Recycling -9/Scraptown -6/Factory -6/Lower Caves -6/Lower Caves -6/Data Miner -5/Proximity Caves -5/Factory (discovered 3 exits: Fac / *Upp x2) -5/Upper Caves -5/Upper Caves -5/Warlord History --------- Turn | Location | Event 1 | -11/Scrapyard | Discovered new exit (range 0) 1 | -11/Scrapyard | Entered Materials 318 | -10/Materials | Build established: Mutant 492 | -10/Materials | Discovered new exit (range 13) 522 | -10/Materials | Entered Subcaves 527 | -10/Subcaves | Learned location of Recycling (-9) 533 | -10/Subcaves | Discovered new exit (range 5) 538 | -10/Subcaves | Shifting Twisted Machinery released Mak. Light Armor Plating 543 | -10/Subcaves | Shifting Twisted Machinery released Sub. Machine Gun 573 | -10/Subcaves | Disturbed a concealed Subdweller 574 | -10/Subcaves | Disturbed a concealed Subdweller 620 | -10/Subcaves | Shifting Twisted Machinery released Barrage Gun 620 | -10/Subcaves | Shifting Twisted Machinery released Battle Rifle 825 | -10/Subcaves | Discovered new exit (range 15) 852 | -10/Subcaves | Entered Recycling 1223 | -9/Recycling | Scanned before Scraplab entrance 1245 | -9/Recycling | Entered Scraplab 1258 | -9/Recycling | Discovered new exit (range 3) 1261 | -9/Recycling | Entered Scraptown 1261 | -9/Scraptown | Accompanied by 3 allies 1277 | -9/Scraptown | Heard Great Nut preacher, LISTEN AND RECITE! 1463 | -9/Scraptown | Visited UFD Registry 1463 | -9/Scraptown | Registered with UFD as "Arcrider" 1493 | -9/Scraptown | Visited Symbiants 1510 | -9/Scraptown | Visited Cyclists 1523 | -9/Scraptown | Entered Cyclist Reading Room 1557 | -9/Scraptown | Visited Red Mages 1579 | -9/Scraptown | Visited SPCMW 1619 | -9/Scraptown | Visited Awakened 1637 | -9/Scraptown | Visited Fellowship of the Rings 1696 | -9/Scraptown | Visited Scrap Suit Storage 1718 | -9/Scraptown | Visited Observation Area 1752 | -9/Scraptown | Visited Abandonware Association 1771 | -9/Scraptown | Learned abandonware demo "MELTYB.EXE" 1771 | -9/Scraptown | Learned abandonware demo "HACKBUD.EXE" 1829 | -9/Scraptown | Visited Derelict Rescue Squad 1838 | -9/Scraptown | Found DRS Beacon 1866 | -9/Scraptown | Visited Junk Repository 1936 | -9/Scraptown | Visited Supply Room 1990 | -9/Scraptown | Visited DA-N13 Charitable Foundation 2004 | -9/Scraptown | Found DCF Scrap (30 items) 2055 | -9/Scraptown | Visited Scrapoid Pod Storage 2080 | -9/Scraptown | Visited Infowarlord's Domain 2112 | -9/Scraptown | Visited Modified Component R&D 2162 | -9/Scraptown | Found Exp. Sensor Array 2285 | -9/Scraptown | Found Scrap Suit 2601 | -9/Scraptown | Discovered new exit (range 3) 2611 | -9/Scraptown | Entered Factory 2611 | -6/Factory | Accompanied by 3 allies 2611 | -6/Factory | Evolved 8 slots: Power x1, Propulsion x1, Utility x5, Weapon x1 3052 | -6/Factory | Build established: Hacker-Scrapper 3101 | -6/Factory | Discovered new exit (range 10) 3112 | -6/Factory | Identified exit to Lower Caves 3113 | -6/Factory | Entered Lower Caves 3249 | -6/Lower Caves | Learned location of 1 exit from Factory 3279 | -6/Lower Caves | Attracted the attention of an 0b10 checkpoint 3367 | -6/Lower Caves | Encountered a Warlord checkpoint 3411 | -6/Lower Caves | Build established: Scrapper 3434 | -6/Lower Caves | Discovered new exit (range 7) 3438 | -6/Lower Caves | Identified exit to Lower Caves 3460 | -6/Lower Caves | Entered another Lower Caves area 3462 | -6/Lower Caves | Attracted the attention of an 0b10 checkpoint 4045 | -6/Lower Caves | Discovered new exit (range 15) 4062 | -6/Lower Caves | Identified exit to Data Miner 4064 | -6/Lower Caves | Entered Data Miner 4064 | -6/Data Miner | Discovered new exit (range 6) 4092 | -6/Data Miner | Met Data Miner 4120 | -6/Data Miner | Acquired the access code to Warlord's prototype stash 4120 | -6/Data Miner | Learned location of Section 7 (-3) 4146 | -6/Data Miner | Received God Mode back door access code from Data Miner 4176 | -6/Data Miner | Identified exit to Proximity Caves 4178 | -6/Data Miner | Entered Proximity Caves 4702 | -5/Proximity Caves | Lost 6 parts (1p3n2w) 4852 | -5/Proximity Caves | Activated DRS Beacon 4883 | -5/Proximity Caves | Core integrity fell below 50% 4920 | -5/Proximity Caves | Lost 6 parts (1p1n3u1w) 4982 | -5/Proximity Caves | Escorted by Enhanced Grunt 5086 | -5/Proximity Caves | Discovered new exit (range 12) 5091 | -5/Proximity Caves | Identified exit to Factory 5099 | -5/Proximity Caves | Entered Factory 5099 | -5/Factory | Accompanied by 1 ally 5099 | -5/Factory | Evolved 2 slots: Utility x2 5100 | -5/Factory | Identified exit to Upper Caves 5101 | -5/Factory | Identified exit to Factory 5221 | -5/Factory | Build established: Scavenger-Mutant 5266 | -5/Factory | Found Prototype Device 5266 | -5/Factory | Identified Exp. Thermal Shield 5440 | -5/Factory | Garrison activated, responded to threat 5555 | -5/Factory | Build established: Scavenger-Gunner 5619 | -5/Factory | Scrapoid reinforcements arrived 5675 | -5/Factory | Entered Upper Caves 5675 | -5/Upper Caves | Accompanied by 5 allies 5708 | -5/Upper Caves | Found Scrap Suit 6131 | -5/Upper Caves | Discovered new exit (range 15) 6149 | -5/Upper Caves | Learned location of 1 exit from Factory 6163 | -5/Upper Caves | Learned location of Warlord (-5) 6196 | -5/Upper Caves | Identified exit to Upper Caves 6197 | -5/Upper Caves | Entered another Upper Caves area 6197 | -5/Upper Caves | Accompanied by 3 allies 6646 | -5/Upper Caves | Attracted the attention of an 0b10 checkpoint 6687 | -5/Upper Caves | Discovered new exit (range 8) 6695 | -5/Upper Caves | Identified exit to Warlord 6696 | -5/Upper Caves | Entered Warlord 6866 | -5/Warlord | Learned location of Command (-1) 6867 | -5/Warlord | Learned Research garrison access intel 6945 | -5/Warlord | Visited the Vortex Lab 6959 | -5/Warlord | Warlord's base attacked by MAIN.C 6960 | -5/Warlord | Found Prototype Piercing Weapon 6964 | -5/Warlord | Found Prototype Piercing Weapon 7212 | -5/Warlord | Rebuked by Warlord 7231 | -5/Warlord | Opened Warlord's prototype stash 7250 | -5/Warlord | Found Prototype Device 7250 | -5/Warlord | Identified System Purifier 7260 | -5/Warlord | Found Prototype Reactor 7260 | -5/Warlord | Identified Vortex Chain Reactor 7278 | -5/Warlord | Found Spectral Analyzer 7309 | -5/Warlord | Warlord forces counterattacked 7634 | -5/Warlord | Warlord base infiltrated, sounded retreat 7635 | -5/Warlord | Enhanced Grunt warped into view 7635 | -5/Warlord | Enhanced Grunt warped into view 7635 | -5/Warlord | Enhanced Grunt warped into view 7635 | -5/Warlord | Enhanced Demolisher warped into view 7635 | -5/Warlord | Enhanced Demolisher warped into view 7635 | -5/Warlord | Enhanced Demolisher warped into view 7885 | -5/Warlord | P-80 Master assimilated allied Archangel 6a 7894 | -5/Warlord | P-80 Master assimilated allied WN-3V4(Y) 7971 | -5/Warlord | Lost 6 allies 8112 | -5/Warlord | Spotted Executioner 8119 | -5/Warlord | Identified Vortex Lance (x2) 8126 | -5/Warlord | Spotted Striker 8143 | -5/Warlord | Destroyed Executioner 8158 | -5/Warlord | Spotted Executioner 8159 | -5/Warlord | Spotted Executioner 8167 | -5/Warlord | Self-destructed Last Messages --------------- 08158_ Critical hit (Destroy). 08158_ Neutron Cannon destroyed. 08159_ ANNOUNCEMENT: Detected 1 Programmer squad, 1 Saboteur squad, 2 Grunt squads. 08161_ Slug penetrates Wall. 08161_ Penetrated by Slug. 08161_ Slug penetrates Wall. 08161_ Slug penetrates Door. 08161_ Penetrated by Slug. 08165_ Exp. Thermal Shield destroyed. 08165_ Slug penetrates Wall. 08166_ Adv. Targeting Computer destroyed. 08166_ Knocked back. 08167_ Adv. Heat Sink blown off. 08167_ Exp. Myomer Leg blown off. 08167_ Backup Power III blown off. 08167_ Backup Power III disintegrated. 08167_ E-15 Imp destroyed. 08167_ Imp. Sensor Array destroyed. 08167_ Critical hit (Burn: +37). Map ----- +----------------------------------------------------+ | """""""""""#?# #??????????? ???????# # | | ############?# #???????????? ???????## # | | ??????##"##########/#?##########?????###### # | | ????? ### ### = #?????# | | ????? ##! """ #?????# | | ????? +[= """ #?????# "" | | ????????#### #######% """ #?????# "" | | ####???######/#######?# #?????# """ # | | [!=##### *!=%[= #?# """ #?????# """ # | | ==*"## # =%"""!%%/%#?# """ #?????# "" # | | ![%""""" """""%%*[#?# %""" #???? # "" ### | | %[!%*![+ " ""**[*%#?# #??? # ?? ? | | ######## [ %[[==#?## ###+####%## | | ???????###########!b#??? ## % """ | | ?##############??##%#??? # ! """ | | ?# X# *! =#???#!#???# ## " """ | | ?# #???# #???# ## ^ " | | ?# ==#???# ##### ####i """" | | ?# =#???# M #??# """" | | ?# # ! =#???####### #### % | | ?# #########???????### b b l Egg ?? | | ?# """"""""#???????# ; x xE ?? | | ?# "#########;;e gg ?? | | ## "## ; g ??? | | + "#" ;%= #######+####??? | | +^ ""## #@ ####+#####???????????? | | + "## ;= # #???????????? | | ## "## ; + #???????????? | | ?# "## # # #???????????? | | ?#""""""""""""#" ##### =[ #???????????? | | ?############### #???# ! #???????????? | | ???????????????# #???# #???????????? | | ???????????????##;#######???# #???????????? | | ????????????????##??????????# #???????????? | | ????????????????????????????# #???????????? | | ????????????????????????????##########???????????? | | ?????????????????????????????????????????????????? | | ?????????????????????????????????????????????????? | | ?????????????????????????????????????????????????? | | ?????????????????????????????????????????????????? | | ?????????????????????????????????????????????????? | | ?????????????????????????????????????????????????? | | ?????????????????????????????????????????????????? | | ?????????????????????????????????????????????????? | | | | | | | | | | | | | +----------------------------------------------------+ Best States ------------- Heat Dissipation 78 Energy Generation 21 Energy Capacity 310 Matter Stores 300 Matter Capacity 300 Sight Range 16 Robot Scan Range 20 Terrain Scan Density 10 Armor Coverage 100 Resistance: TH 30 Evasion (%) 56 Targeting Accuracy 14 Target Analysis 6 Recoil Reduction 2 Offensive Hacking 22 Item Schematics ----------------- Combat Drone Bay | -6/Data Miner | Free Cld. Gravmag System | -6/Data Miner | Free Lgt. Regenerative Plating | -6/Data Miner | Free Prc. Matter Filter | -6/Data Miner | Free Cld. Plasma Rifle | -6/Data Miner | Free Centrium Wheel | -6/Data Miner | Free Lrn. Sensor Array | -6/Data Miner | Free Hvy. Disruptor Cannon | -6/Data Miner | Free Imp. Dynamic Insulation System | -6/Data Miner | Free Railgun | -6/Data Miner | Free Arm. Heavy Treads | -6/Data Miner | Free Robot Schematics ------------------ A-15 Conveyor | -6/Data Miner | Free A-27 Freighter | -6/Data Miner | Free M-22 Extractor | -6/Data Miner | Free D-63 Destroyer | -6/Data Miner | Free E-15 Imp | -6/Data Miner | Free B-48 Gladiator | -6/Data Miner | Free Fabricated ------------ Nothing Alien Tech Used ----------------- None Achievements -------------- Reappropriation Challenges ------------ None Game ------ Seed ExplosiveMiniBattery Manual? 0 Play Time 00:47:17 Cumulative 134.2 hours Start 2024.09.15 @ 18:48:29 End 2024.09.15 @ 19:39:54 Sessions 3 Manual Loads 0 Difficulty Rogue Special Mode None Game No. 217 Rogue 216 Adventurer 1 Explorer 0 Win Type - Total 2 Types 2/0/0/0/0/0/0/0/0 Lore% 70 Gallery% 68 Achievement% 50 Wizard Run 0 Options --------- Layout 1 ASCII 0 Keyboard 0 Movement Mouse Keybinds 0 Fullscreen 2 Font 20/SmallcapsGlow Map View 54x42 Zoom Use 0% Tactical HUD 1 Map Filters NONE Filters NONE Steam 0 RUN: 93e740b5-0acf-4f0d-b9eb-bd47e73573f6